Workbook

Sheet OBIECTIVE
B1: =TODAY() -> 2017-05-09 | C1: OBIECTIVE | J1: Exerciții | K1: Dietă
B2: DATA DE ÎNCEPUT | C2: JURNAL DE DIETĂ ȘI EXERCIȚII
B3: =DataDeÎnceput+121 -> 2017-09-07 | C3: ANALIZĂ DIETĂ
B5: DATA DE SFÂRȘIT
B6: 100.00
B7: GREUTATE INIȚIALĂ
B8: 80.00 | C8: ANALIZĂ EXERCIȚII
B10: GREUTATE FINALĂ
B11: =GreutateInițială-GreutateFinală -> 20
B12: OBIECTIV DE SCĂDERE ÎN GREUTATE
B13: =DataDeSfârșit-DataDeÎnceput -> 121
B14: ZILE DE SCĂDERE ÎN GREUTATE
B15: =ObiectivGreutate/B13 -> 0.17
B16: SCĂDERE ÎN GREUTATE PE ZI

Sheet DIETĂ
B1: DIETĂ | G1: Obiective | H1: Exerciții
B2: =Subtitlu -> JURNAL DE DIETĂ ȘI EXERCIȚII
B3: DATA | C3: ORA | D3: DESCRIERE | E3: CALORII | F3: CARBOHIDRAȚI | G3: PROTEINE | H3: GRĂSIMI | I3: NOTE
B4: =DataDeÎnceput -> 2017-05-09 | C4: 07:00:00 | D4: Cafea | E4: 1 | F4: 0 | G4: 0 | H4: 0 | I4: Cafeaua de dimineață
B5: =DataDeÎnceput -> 2017-05-09 | C5: 08:00:00 | D5: Covrig | E5: 10 | F5: 10 | G5: 2 | H5: 10 | I5: Mic dejun ușor
B6: =DataDeÎnceput -> 2017-05-09 | C6: 12:00:00 | D6: Masa de prânz | E6: 283 | F6: 46 | G6: 18 | H6: 4 | I6: Sandviș cu curcan
B7: =DataDeÎnceput -> 2017-05-09 | C7: 19:00:00 | D7: Cină | E7: 500 | F7: 42 | G7: 35 | H7: 25 | I7: Budincă de cartofi
B8: =DataDeÎnceput+1 -> 2017-05-10 | C8: 07:00:00 | D8: Cafea | E8: 1 | F8: 0 | G8: 0 | H8: 0 | I8: Cafeaua de dimineață
B9: =DataDeÎnceput+1 -> 2017-05-10 | C9: 08:00:00 | D9: Pâine prăjită | E9: 10 | F9: 10 | G9: 2 | H9: 10 | I9: Mic dejun ușor
B10: =DataDeÎnceput+1 -> 2017-05-10 | C10: 12:00:00 | D10: Masa de prânz | E10: 189 | F10: 26 | G10: 3 | H10: 8 | I10: Sandviș
B11: =DataDeÎnceput+1 -> 2017-05-10 | C11: 19:00:00 | D11: Cină | E11: 477 | F11: 62 | G11: 14 | H11: 21 | I11: Cină
B12: =DataDeÎnceput+2 -> 2017-05-11 | C12: 07:00:00 | D12: Cafea | E12: 1 | F12: 0 | G12: 0 | H12: 0 | I12: Cafeaua de dimineață
B13: =DataDeÎnceput+2 -> 2017-05-11 | C13: 08:00:00 | D13: Covrig | E13: 245 | F13: 48 | G13: 10 | H13: 2 | I13: Mic dejun ușor
B14: =DataDeÎnceput+2 -> 2017-05-11 | C14: 12:00:00 | D14: Masa de prânz | E14: 247 | F14: 11 | G14: 43 | H14: 5 | I14: Salată
B15: =DataDeÎnceput+2 -> 2017-05-11 | C15: 19:00:00 | D15: Cină | E15: 456 | F15: 64 | G15: 32 | H15: 22 | I15: Cină
B16: =DataDeÎnceput+3 -> 2017-05-12 | C16: 07:00:00 | D16: Pâine prăjită | E16: 10 | F16: 10 | G16: 2 | H16: 10 | I16: Mic dejun ușor
B17: =DataDeÎnceput+3 -> 2017-05-12 | C17: 10:00:00 | D17: Cafea | E17: 135 | F17: 12 | G17: 9 | H17: 6 | I17: Cafea cu lapte
B18: =DataDeÎnceput+3 -> 2017-05-12 | C18: 12:15:00 | D18: Masa de prânz | E18: 184 | F18: 7 | G18: 5 | H18: 15 | I18: Salată
B19: =DataDeÎnceput+5 -> 2017-05-14 | C19: 19:00:00 | D19: Cină | E19: 477 | F19: 62 | G19: 14 | H19: 21 | I19: Cină

Sheet EXERCIȚII
B1: EXERCIȚII | F1: Dietă | G1: Obiective
B2: =Subtitlu -> JURNAL DE DIETĂ ȘI EXERCIȚII
B3: DATA | C3: DURATA (MINUTE) | D3: CALORII CONSUMATE | E3: NOTE
B4: =DataDeÎnceput+4 -> 2017-05-13 | C4: 30 | D4: 120 | E4: Antrenament pe banda de alergare
B5: =B4+1 -> 2017-05-14 | C5: 60 | D5: 180 | E5: Aerobic cu impact redus
B6: =B5+1 -> 2017-05-15 | C6: 60 | D6: 350 | E6: Antrenament intens
B7: 2017-05-16 | C7: 30 | D7: 150 | E7: Antrenament pe banda de alergare
B8: 2017-05-17 | C8: 25 | D8: 125 | E8: Alergare
B9: 2017-05-18 | C9: 20 | D9: 285 | E9: Antrenament pe banda de alergare
B10: 2017-05-19 | C10: 40 | D10: 205 | E10: Alergare
B11: 2017-05-20 | C11: 30 | D11: 335 | E11: Alergare
B12: 2017-05-21 | C12: 40 | D12: 175 | E12: Alergare
B13: 2017-05-22 | C13: 45 | D13: 325 | E13: Antrenament pe banda de alergare
B14: 2017-05-23 | C14: 40 | D14: 270 | E14: Alergare
B15: 2017-05-24 | C15: 20 | D15: 295 | E15: Antrenament pe banda de alergare
B16: 2017-05-25 | C16: 45 | D16: 350 | E16: Alergare
B17: 2017-05-26 | C17: 35 | D17: 320 | E17: Alergare
B18: 2017-05-27 | C18: 40 | D18: 290 | E18: Alergare
B19: =B18+1 -> 2017-05-28 | C19: 25 | D19: 265 | E19: Antrenament pe banda de alergare
B20: 2017-05-29 | C20: 20 | D20: 195 | E20: Alergare

Sheet Calcule diagramă (hidden)
B2: DATE DIN DIAGRAMA ANALIZĂ DIETĂ
B4: Rând inițial | C4: =ROW(Dietă[[#Headers],[DATA]])+1 -> 4 | D4: DATA | E4: ZIUA | F4: GRĂSIMI | G4: PROTEINE | H4: CARBOHIDRAȚI | I4: CALORII | J4: Num
B5: Ultima intrare pentru dietă | C5: =MATCH(9.99E+307,Dietă[DATA])+ÎnceputRândDietă-1 -> 19 | D5: =IFERROR(IF(INDEX(Dietă[],DataDeSfârșitUltimaDietă-ÎnceputRândDietă-J5,1)<>"",INDEX(Dietă[],DataDeSfârșitUltimaDietă-ÎnceputRândDietă-J5,1),""),"") -> 2017-05-09 | E5: =UPPER(TEXT(D5,"DDD")) -> MAR | F5: =IFERROR((IF(INDEX(Dietă[],DataDeSfârșitUltimaDietă-ÎnceputRândDietă-J5,1)<>"",INDEX(Dietă[],DataDeSfârșitUltimaDietă-ÎnceputRândDietă-J5,7),NA())),NA()) -> 3.5 | G5: =IFERROR((IF(INDEX(Dietă[],DataDeSfârșitUltimaDietă-ÎnceputRândDietă-J5,1)<>"",INDEX(Dietă[],DataDeSfârșitUltimaDietă-ÎnceputRândDietă-J5,6),NA())),NA()) -> 18 | H5: =IFERROR((IF(INDEX(Dietă[],DataDeSfârșitUltimaDietă-ÎnceputRândDietă-J5,1)<>"",INDEX(Dietă[],DataDeSfârșitUltimaDietă-ÎnceputRândDietă-J5,5),NA())),NA()) -> 46 | I5: =IFERROR((IF(INDEX(Dietă[],DataDeSfârșitUltimaDietă-ÎnceputRândDietă-J5,1)<>"",INDEX(Dietă[],DataDeSfârșitUltimaDietă-ÎnceputRândDietă-J5,4),NA())),NA()) -> 283 | J5: 12
D6: =IFERROR(IF(INDEX(Dietă[],DataDeSfârșitUltimaDietă-ÎnceputRândDietă-J6,1)<>"",INDEX(Dietă[],DataDeSfârșitUltimaDietă-ÎnceputRândDietă-J6,1),""),"") -> 2017-05-09 | E6: MAR | F6: =IFERROR((IF(INDEX(Dietă[],DataDeSfârșitUltimaDietă-ÎnceputRândDietă-J6,1)<>"",INDEX(Dietă[],DataDeSfârșitUltimaDietă-ÎnceputRândDietă-J6,7),NA())),NA()) -> 25 | G6: =IFERROR((IF(INDEX(Dietă[],DataDeSfârșitUltimaDietă-ÎnceputRândDietă-J6,1)<>"",INDEX(Dietă[],DataDeSfârșitUltimaDietă-ÎnceputRândDietă-J6,6),NA())),NA()) -> 35 | H6: =IFERROR((IF(INDEX(Dietă[],DataDeSfârșitUltimaDietă-ÎnceputRândDietă-J6,1)<>"",INDEX(Dietă[],DataDeSfârșitUltimaDietă-ÎnceputRândDietă-J6,5),NA())),NA()) -> 42 | I6: =IFERROR((IF(INDEX(Dietă[],DataDeSfârșitUltimaDietă-ÎnceputRândDietă-J6,1)<>"",INDEX(Dietă[],DataDeSfârșitUltimaDietă-ÎnceputRândDietă-J6,4),NA())),NA()) -> 500 | J6: 11
D7: =IFERROR(IF(INDEX(Dietă[],DataDeSfârșitUltimaDietă-ÎnceputRândDietă-J7,1)<>"",INDEX(Dietă[],DataDeSfârșitUltimaDietă-ÎnceputRândDietă-J7,1),""),"") -> 2017-05-10 | E7: MIE | F7: =IFERROR((IF(INDEX(Dietă[],DataDeSfârșitUltimaDietă-ÎnceputRândDietă-J7,1)<>"",INDEX(Dietă[],DataDeSfârșitUltimaDietă-ÎnceputRândDietă-J7,7),NA())),NA()) -> 0 | G7: =IFERROR((IF(INDEX(Dietă[],DataDeSfârșitUltimaDietă-ÎnceputRândDietă-J7,1)<>"",INDEX(Dietă[],DataDeSfârșitUltimaDietă-ÎnceputRândDietă-J7,6),NA())),NA()) -> 0 | H7: =IFERROR((IF(INDEX(Dietă[],DataDeSfârșitUltimaDietă-ÎnceputRândDietă-J7,1)<>"",INDEX(Dietă[],DataDeSfârșitUltimaDietă-ÎnceputRândDietă-J7,5),NA())),NA()) -> 0 | I7: =IFERROR((IF(INDEX(Dietă[],DataDeSfârșitUltimaDietă-ÎnceputRândDietă-J7,1)<>"",INDEX(Dietă[],DataDeSfârșitUltimaDietă-ÎnceputRândDietă-J7,4),NA())),NA()) -> 1 | J7: 10
D8: =IFERROR(IF(INDEX(Dietă[],DataDeSfârșitUltimaDietă-ÎnceputRândDietă-J8,1)<>"",INDEX(Dietă[],DataDeSfârșitUltimaDietă-ÎnceputRândDietă-J8,1),""),"") -> 2017-05-10 | E8: MIE | F8: =IFERROR((IF(INDEX(Dietă[],DataDeSfârșitUltimaDietă-ÎnceputRândDietă-J8,1)<>"",INDEX(Dietă[],DataDeSfârșitUltimaDietă-ÎnceputRândDietă-J8,7),NA())),NA()) -> 10 | G8: =IFERROR((IF(INDEX(Dietă[],DataDeSfârșitUltimaDietă-ÎnceputRândDietă-J8,1)<>"",INDEX(Dietă[],DataDeSfârșitUltimaDietă-ÎnceputRândDietă-J8,6),NA())),NA()) -> 2 | H8: =IFERROR((IF(INDEX(Dietă[],DataDeSfârșitUltimaDietă-ÎnceputRândDietă-J8,1)<>"",INDEX(Dietă[],DataDeSfârșitUltimaDietă-ÎnceputRândDietă-J8,5),NA())),NA()) -> 10 | I8: =IFERROR((IF(INDEX(Dietă[],DataDeSfârșitUltimaDietă-ÎnceputRândDietă-J8,1)<>"",INDEX(Dietă[],DataDeSfârșitUltimaDietă-ÎnceputRândDietă-J8,4),NA())),NA()) -> 10 | J8: 9
D9: =IFERROR(IF(INDEX(Dietă[],DataDeSfârșitUltimaDietă-ÎnceputRândDietă-J9,1)<>"",INDEX(Dietă[],DataDeSfârșitUltimaDietă-ÎnceputRândDietă-J9,1),""),"") -> 2017-05-10 | E9: MIE | F9: =IFERROR((IF(INDEX(Dietă[],DataDeSfârșitUltimaDietă-ÎnceputRândDietă-J9,1)<>"",INDEX(Dietă[],DataDeSfârșitUltimaDietă-ÎnceputRândDietă-J9,7),NA())),NA()) -> 8 | G9: =IFERROR((IF(INDEX(Dietă[],DataDeSfârșitUltimaDietă-ÎnceputRândDietă-J9,1)<>"",INDEX(Dietă[],DataDeSfârșitUltimaDietă-ÎnceputRândDietă-J9,6),NA())),NA()) -> 3 | H9: =IFERROR((IF(INDEX(Dietă[],DataDeSfârșitUltimaDietă-ÎnceputRândDietă-J9,1)<>"",INDEX(Dietă[],DataDeSfârșitUltimaDietă-ÎnceputRândDietă-J9,5),NA())),NA()) -> 26 | I9: =IFERROR((IF(INDEX(Dietă[],DataDeSfârșitUltimaDietă-ÎnceputRândDietă-J9,1)<>"",INDEX(Dietă[],DataDeSfârșitUltimaDietă-ÎnceputRândDietă-J9,4),NA())),NA()) -> 189 | J9: 8
D10: =IFERROR(IF(INDEX(Dietă[],DataDeSfârșitUltimaDietă-ÎnceputRândDietă-J10,1)<>"",INDEX(Dietă[],DataDeSfârșitUltimaDietă-ÎnceputRândDietă-J10,1),""),"") -> 2017-05-10 | E10: MIE | F10: =IFERROR((IF(INDEX(Dietă[],DataDeSfârșitUltimaDietă-ÎnceputRândDietă-J10,1)<>"",INDEX(Dietă[],DataDeSfârșitUltimaDietă-ÎnceputRândDietă-J10,7),NA())),NA()) -> 21 | G10: =IFERROR((IF(INDEX(Dietă[],DataDeSfârșitUltimaDietă-ÎnceputRândDietă-J10,1)<>"",INDEX(Dietă[],DataDeSfârșitUltimaDietă-ÎnceputRândDietă-J10,6),NA())),NA()) -> 13.5 | H10: =IFERROR((IF(INDEX(Dietă[],DataDeSfârșitUltimaDietă-ÎnceputRândDietă-J10,1)<>"",INDEX(Dietă[],DataDeSfârșitUltimaDietă-ÎnceputRândDietă-J10,5),NA())),NA()) -> 62 | I10: =IFERROR((IF(INDEX(Dietă[],DataDeSfârșitUltimaDietă-ÎnceputRândDietă-J10,1)<>"",INDEX(Dietă[],DataDeSfârșitUltimaDietă-ÎnceputRândDietă-J10,4),NA())),NA()) -> 477 | J10: 7
D11: =IFERROR(IF(INDEX(Dietă[],DataDeSfârșitUltimaDietă-ÎnceputRândDietă-J11,1)<>"",INDEX(Dietă[],DataDeSfârșitUltimaDietă-ÎnceputRândDietă-J11,1),""),"") -> 2017-05-11 | E11: JOI | F11: =IFERROR((IF(INDEX(Dietă[],DataDeSfârșitUltimaDietă-ÎnceputRândDietă-J11,1)<>"",INDEX(Dietă[],DataDeSfârșitUltimaDietă-ÎnceputRândDietă-J11,7),NA())),NA()) -> 0 | G11: =IFERROR((IF(INDEX(Dietă[],DataDeSfârșitUltimaDietă-ÎnceputRândDietă-J11,1)<>"",INDEX(Dietă[],DataDeSfârșitUltimaDietă-ÎnceputRândDietă-J11,6),NA())),NA()) -> 0 | H11: =IFERROR((IF(INDEX(Dietă[],DataDeSfârșitUltimaDietă-ÎnceputRândDietă-J11,1)<>"",INDEX(Dietă[],DataDeSfârșitUltimaDietă-ÎnceputRândDietă-J11,5),NA())),NA()) -> 0 | I11: =IFERROR((IF(INDEX(Dietă[],DataDeSfârșitUltimaDietă-ÎnceputRândDietă-J11,1)<>"",INDEX(Dietă[],DataDeSfârșitUltimaDietă-ÎnceputRândDietă-J11,4),NA())),NA()) -> 1 | J11: 6
D12: =IFERROR(IF(INDEX(Dietă[],DataDeSfârșitUltimaDietă-ÎnceputRândDietă-J12,1)<>"",INDEX(Dietă[],DataDeSfârșitUltimaDietă-ÎnceputRândDietă-J12,1),""),"") -> 2017-05-11 | E12: JOI | F12: =IFERROR((IF(INDEX(Dietă[],DataDeSfârșitUltimaDietă-ÎnceputRândDietă-J12,1)<>"",INDEX(Dietă[],DataDeSfârșitUltimaDietă-ÎnceputRândDietă-J12,7),NA())),NA()) -> 1.5 | G12: =IFERROR((IF(INDEX(Dietă[],DataDeSfârșitUltimaDietă-ÎnceputRândDietă-J12,1)<>"",INDEX(Dietă[],DataDeSfârșitUltimaDietă-ÎnceputRândDietă-J12,6),NA())),NA()) -> 10 | H12: =IFERROR((IF(INDEX(Dietă[],DataDeSfârșitUltimaDietă-ÎnceputRândDietă-J12,1)<>"",INDEX(Dietă[],DataDeSfârșitUltimaDietă-ÎnceputRândDietă-J12,5),NA())),NA()) -> 48 | I12: =IFERROR((IF(INDEX(Dietă[],DataDeSfârșitUltimaDietă-ÎnceputRândDietă-J12,1)<>"",INDEX(Dietă[],DataDeSfârșitUltimaDietă-ÎnceputRândDietă-J12,4),NA())),NA()) -> 245 | J12: 5
D13: =IFERROR(IF(INDEX(Dietă[],DataDeSfârșitUltimaDietă-ÎnceputRândDietă-J13,1)<>"",INDEX(Dietă[],DataDeSfârșitUltimaDietă-ÎnceputRândDietă-J13,1),""),"") -> 2017-05-11 | E13: JOI | F13: =IFERROR((IF(INDEX(Dietă[],DataDeSfârșitUltimaDietă-ÎnceputRândDietă-J13,1)<>"",INDEX(Dietă[],DataDeSfârșitUltimaDietă-ÎnceputRândDietă-J13,7),NA())),NA()) -> 5 | G13: =IFERROR((IF(INDEX(Dietă[],DataDeSfârșitUltimaDietă-ÎnceputRândDietă-J13,1)<>"",INDEX(Dietă[],DataDeSfârșitUltimaDietă-ÎnceputRândDietă-J13,6),NA())),NA()) -> 43 | H13: =IFERROR((IF(INDEX(Dietă[],DataDeSfârșitUltimaDietă-ÎnceputRândDietă-J13,1)<>"",INDEX(Dietă[],DataDeSfârșitUltimaDietă-ÎnceputRândDietă-J13,5),NA())),NA()) -> 11 | I13: =IFERROR((IF(INDEX(Dietă[],DataDeSfârșitUltimaDietă-ÎnceputRândDietă-J13,1)<>"",INDEX(Dietă[],DataDeSfârșitUltimaDietă-ÎnceputRândDietă-J13,4),NA())),NA()) -> 247 | J13: 4
D14: =IFERROR(IF(INDEX(Dietă[],DataDeSfârșitUltimaDietă-ÎnceputRândDietă-J14,1)<>"",INDEX(Dietă[],DataDeSfârșitUltimaDietă-ÎnceputRândDietă-J14,1),""),"") -> 2017-05-11 | E14: JOI | F14: =IFERROR((IF(INDEX(Dietă[],DataDeSfârșitUltimaDietă-ÎnceputRândDietă-J14,1)<>"",INDEX(Dietă[],DataDeSfârșitUltimaDietă-ÎnceputRândDietă-J14,7),NA())),NA()) -> 22 | G14: =IFERROR((IF(INDEX(Dietă[],DataDeSfârșitUltimaDietă-ÎnceputRândDietă-J14,1)<>"",INDEX(Dietă[],DataDeSfârșitUltimaDietă-ÎnceputRândDietă-J14,6),NA())),NA()) -> 32 | H14: =IFERROR((IF(INDEX(Dietă[],DataDeSfârșitUltimaDietă-ÎnceputRândDietă-J14,1)<>"",INDEX(Dietă[],DataDeSfârșitUltimaDietă-ÎnceputRândDietă-J14,5),NA())),NA()) -> 64 | I14: =IFERROR((IF(INDEX(Dietă[],DataDeSfârșitUltimaDietă-ÎnceputRândDietă-J14,1)<>"",INDEX(Dietă[],DataDeSfârșitUltimaDietă-ÎnceputRândDietă-J14,4),NA())),NA()) -> 456 | J14: 3
D15: =IFERROR(IF(INDEX(Dietă[],DataDeSfârșitUltimaDietă-ÎnceputRândDietă-J15,1)<>"",INDEX(Dietă[],DataDeSfârșitUltimaDietă-ÎnceputRândDietă-J15,1),""),"") -> 2017-05-12 | E15: VIN | F15: =IFERROR((IF(INDEX(Dietă[],DataDeSfârșitUltimaDietă-ÎnceputRândDietă-J15,1)<>"",INDEX(Dietă[],DataDeSfârșitUltimaDietă-ÎnceputRândDietă-J15,7),NA())),NA()) -> 10 | G15: =IFERROR((IF(INDEX(Dietă[],DataDeSfârșitUltimaDietă-ÎnceputRândDietă-J15,1)<>"",INDEX(Dietă[],DataDeSfârșitUltimaDietă-ÎnceputRândDietă-J15,6),NA())),NA()) -> 2 | H15: =IFERROR((IF(INDEX(Dietă[],DataDeSfârșitUltimaDietă-ÎnceputRândDietă-J15,1)<>"",INDEX(Dietă[],DataDeSfârșitUltimaDietă-ÎnceputRândDietă-J15,5),NA())),NA()) -> 10 | I15: =IFERROR((IF(INDEX(Dietă[],DataDeSfârșitUltimaDietă-ÎnceputRândDietă-J15,1)<>"",INDEX(Dietă[],DataDeSfârșitUltimaDietă-ÎnceputRândDietă-J15,4),NA())),NA()) -> 10 | J15: 2
D16: =IFERROR(IF(INDEX(Dietă[],DataDeSfârșitUltimaDietă-ÎnceputRândDietă-J16,1)<>"",INDEX(Dietă[],DataDeSfârșitUltimaDietă-ÎnceputRândDietă-J16,1),""),"") -> 2017-05-12 | E16: VIN | F16: =IFERROR((IF(INDEX(Dietă[],DataDeSfârșitUltimaDietă-ÎnceputRândDietă-J16,1)<>"",INDEX(Dietă[],DataDeSfârșitUltimaDietă-ÎnceputRândDietă-J16,7),NA())),NA()) -> 5.51 | G16: =IFERROR((IF(INDEX(Dietă[],DataDeSfârșitUltimaDietă-ÎnceputRândDietă-J16,1)<>"",INDEX(Dietă[],DataDeSfârșitUltimaDietă-ÎnceputRândDietă-J16,6),NA())),NA()) -> 8.81 | H16: =IFERROR((IF(INDEX(Dietă[],DataDeSfârșitUltimaDietă-ÎnceputRândDietă-J16,1)<>"",INDEX(Dietă[],DataDeSfârșitUltimaDietă-ÎnceputRândDietă-J16,5),NA())),NA()) -> 12.36 | I16: =IFERROR((IF(INDEX(Dietă[],DataDeSfârșitUltimaDietă-ÎnceputRândDietă-J16,1)<>"",INDEX(Dietă[],DataDeSfârșitUltimaDietă-ÎnceputRândDietă-J16,4),NA())),NA()) -> 135 | J16: 1
D17: =IFERROR(IF(INDEX(Dietă[],DataDeSfârșitUltimaDietă-ÎnceputRândDietă-J17,1)<>"",INDEX(Dietă[],DataDeSfârșitUltimaDietă-ÎnceputRândDietă-J17,1),""),"") -> 2017-05-12 | E17: VIN | F17: =IFERROR((IF(INDEX(Dietă[],DataDeSfârșitUltimaDietă-ÎnceputRândDietă-J17,1)<>"",INDEX(Dietă[],DataDeSfârșitUltimaDietă-ÎnceputRândDietă-J17,7),NA())),NA()) -> 15 | G17: =IFERROR((IF(INDEX(Dietă[],DataDeSfârșitUltimaDietă-ÎnceputRândDietă-J17,1)<>"",INDEX(Dietă[],DataDeSfârșitUltimaDietă-ÎnceputRândDietă-J17,6),NA())),NA()) -> 5.43 | H17: =IFERROR((IF(INDEX(Dietă[],DataDeSfârșitUltimaDietă-ÎnceputRândDietă-J17,1)<>"",INDEX(Dietă[],DataDeSfârșitUltimaDietă-ÎnceputRândDietă-J17,5),NA())),NA()) -> 7 | I17: =IFERROR((IF(INDEX(Dietă[],DataDeSfârșitUltimaDietă-ÎnceputRândDietă-J17,1)<>"",INDEX(Dietă[],DataDeSfârșitUltimaDietă-ÎnceputRândDietă-J17,4),NA())),NA()) -> 184 | J17: 0
D18: =IFERROR(IF(INDEX(Dietă[],DataDeSfârșitUltimaDietă-ÎnceputRândDietă-J18,1)<>"",INDEX(Dietă[],DataDeSfârșitUltimaDietă-ÎnceputRândDietă-J18,1),""),"") -> 2017-05-14 | E18: DUM | F18: =IFERROR((IF(INDEX(Dietă[],DataDeSfârșitUltimaDietă-ÎnceputRândDietă-J18,1)<>"",INDEX(Dietă[],DataDeSfârșitUltimaDietă-ÎnceputRândDietă-J18,7),NA())),NA()) -> 21 | G18: =IFERROR((IF(INDEX(Dietă[],DataDeSfârșitUltimaDietă-ÎnceputRândDietă-J18,1)<>"",INDEX(Dietă[],DataDeSfârșitUltimaDietă-ÎnceputRândDietă-J18,6),NA())),NA()) -> 13.5 | H18: =IFERROR((IF(INDEX(Dietă[],DataDeSfârșitUltimaDietă-ÎnceputRândDietă-J18,1)<>"",INDEX(Dietă[],DataDeSfârșitUltimaDietă-ÎnceputRândDietă-J18,5),NA())),NA()) -> 62 | I18: =IFERROR((IF(INDEX(Dietă[],DataDeSfârșitUltimaDietă-ÎnceputRândDietă-J18,1)<>"",INDEX(Dietă[],DataDeSfârșitUltimaDietă-ÎnceputRândDietă-J18,4),NA())),NA()) -> 477 | J18: -1
B20: DATE DIN DIAGRAMA ANALIZĂ EXERCIȚII
B22: Rând inițial | C22: =ROW(Exerciții[[#Headers],[DATA]])+1 -> 4 | D22: DATA | E22: ZIUA | F22: DURATA (MINUTE) | G22: CALORII CONSUMATE | H22: Num
B23: Ultima intrare pentru exerciții | C23: =MATCH(9.99E+307,Exerciții[DATA])+ÎnceputRândExerciții-1 -> 20 | D23: =IFERROR(IF(INDEX(Exerciții[],DataDeSfârșitUltimeleExerciții-ÎnceputRândExerciții-H23,1)<>"",INDEX(Exerciții[],DataDeSfârșitUltimeleExerciții-ÎnceputRândExerciții-H23,1)),"") -> 2017-05-29 | E23: =UPPER(TEXT(D23,"DDD")) -> LUN | F23: =IFERROR((IF(INDEX(Exerciții[],DataDeSfârșitUltimeleExerciții-ÎnceputRândExerciții-H23,1)<>"",INDEX(Exerciții[],DataDeSfârșitUltimeleExerciții-ÎnceputRândExerciții-H23,2),0)),0) -> 20 | G23: =IFERROR((IF(INDEX(Exerciții[],DataDeSfârșitUltimeleExerciții-ÎnceputRândExerciții-H23,2)<>"",INDEX(Exerciții[],DataDeSfârșitUltimeleExerciții-ÎnceputRândExerciții-H23,3),0)),0) -> 195 | H23: -1
D24: =IFERROR(IF(INDEX(Exerciții[],DataDeSfârșitUltimeleExerciții-ÎnceputRândExerciții-H24,1)<>"",INDEX(Exerciții[],DataDeSfârșitUltimeleExerciții-ÎnceputRândExerciții-H24,1)),"") -> 2017-05-28 | E24: DUM | F24: =IFERROR((IF(INDEX(Exerciții[],DataDeSfârșitUltimeleExerciții-ÎnceputRândExerciții-H24,1)<>"",INDEX(Exerciții[],DataDeSfârșitUltimeleExerciții-ÎnceputRândExerciții-H24,2),0)),0) -> 25 | G24: =IFERROR((IF(INDEX(Exerciții[],DataDeSfârșitUltimeleExerciții-ÎnceputRândExerciții-H24,2)<>"",INDEX(Exerciții[],DataDeSfârșitUltimeleExerciții-ÎnceputRândExerciții-H24,3),0)),0) -> 265 | H24: 0
D25: =IFERROR(IF(INDEX(Exerciții[],DataDeSfârșitUltimeleExerciții-ÎnceputRândExerciții-H25,1)<>"",INDEX(Exerciții[],DataDeSfârșitUltimeleExerciții-ÎnceputRândExerciții-H25,1)),"") -> 2017-05-27 | E25: SÂM | F25: =IFERROR((IF(INDEX(Exerciții[],DataDeSfârșitUltimeleExerciții-ÎnceputRândExerciții-H25,1)<>"",INDEX(Exerciții[],DataDeSfârșitUltimeleExerciții-ÎnceputRândExerciții-H25,2),0)),0) -> 40 | G25: =IFERROR((IF(INDEX(Exerciții[],DataDeSfârșitUltimeleExerciții-ÎnceputRândExerciții-H25,2)<>"",INDEX(Exerciții[],DataDeSfârșitUltimeleExerciții-ÎnceputRândExerciții-H25,3),0)),0) -> 290 | H25: 1
D26: =IFERROR(IF(INDEX(Exerciții[],DataDeSfârșitUltimeleExerciții-ÎnceputRândExerciții-H26,1)<>"",INDEX(Exerciții[],DataDeSfârșitUltimeleExerciții-ÎnceputRândExerciții-H26,1)),"") -> 2017-05-26 | E26: VIN | F26: =IFERROR((IF(INDEX(Exerciții[],DataDeSfârșitUltimeleExerciții-ÎnceputRândExerciții-H26,1)<>"",INDEX(Exerciții[],DataDeSfârșitUltimeleExerciții-ÎnceputRândExerciții-H26,2),0)),0) -> 35 | G26: =IFERROR((IF(INDEX(Exerciții[],DataDeSfârșitUltimeleExerciții-ÎnceputRândExerciții-H26,2)<>"",INDEX(Exerciții[],DataDeSfârșitUltimeleExerciții-ÎnceputRândExerciții-H26,3),0)),0) -> 320 | H26: 2
D27: =IFERROR(IF(INDEX(Exerciții[],DataDeSfârșitUltimeleExerciții-ÎnceputRândExerciții-H27,1)<>"",INDEX(Exerciții[],DataDeSfârșitUltimeleExerciții-ÎnceputRândExerciții-H27,1)),"") -> 2017-05-25 | E27: JOI | F27: =IFERROR((IF(INDEX(Exerciții[],DataDeSfârșitUltimeleExerciții-ÎnceputRândExerciții-H27,1)<>"",INDEX(Exerciții[],DataDeSfârșitUltimeleExerciții-ÎnceputRândExerciții-H27,2),0)),0) -> 45 | G27: =IFERROR((IF(INDEX(Exerciții[],DataDeSfârșitUltimeleExerciții-ÎnceputRândExerciții-H27,2)<>"",INDEX(Exerciții[],DataDeSfârșitUltimeleExerciții-ÎnceputRândExerciții-H27,3),0)),0) -> 350 | H27: 3
D28: =IFERROR(IF(INDEX(Exerciții[],DataDeSfârșitUltimeleExerciții-ÎnceputRândExerciții-H28,1)<>"",INDEX(Exerciții[],DataDeSfârșitUltimeleExerciții-ÎnceputRândExerciții-H28,1)),"") -> 2017-05-24 | E28: MIE | F28: =IFERROR((IF(INDEX(Exerciții[],DataDeSfârșitUltimeleExerciții-ÎnceputRândExerciții-H28,1)<>"",INDEX(Exerciții[],DataDeSfârșitUltimeleExerciții-ÎnceputRândExerciții-H28,2),0)),0) -> 20 | G28: =IFERROR((IF(INDEX(Exerciții[],DataDeSfârșitUltimeleExerciții-ÎnceputRândExerciții-H28,2)<>"",INDEX(Exerciții[],DataDeSfârșitUltimeleExerciții-ÎnceputRândExerciții-H28,3),0)),0) -> 295 | H28: 4
D29: =IFERROR(IF(INDEX(Exerciții[],DataDeSfârșitUltimeleExerciții-ÎnceputRândExerciții-H29,1)<>"",INDEX(Exerciții[],DataDeSfârșitUltimeleExerciții-ÎnceputRândExerciții-H29,1)),"") -> 2017-05-23 | E29: MAR | F29: =IFERROR((IF(INDEX(Exerciții[],DataDeSfârșitUltimeleExerciții-ÎnceputRândExerciții-H29,1)<>"",INDEX(Exerciții[],DataDeSfârșitUltimeleExerciții-ÎnceputRândExerciții-H29,2),0)),0) -> 40 | G29: =IFERROR((IF(INDEX(Exerciții[],DataDeSfârșitUltimeleExerciții-ÎnceputRândExerciții-H29,2)<>"",INDEX(Exerciții[],DataDeSfârșitUltimeleExerciții-ÎnceputRândExerciții-H29,3),0)),0) -> 270 | H29: 5
D30: =IFERROR(IF(INDEX(Exerciții[],DataDeSfârșitUltimeleExerciții-ÎnceputRândExerciții-H30,1)<>"",INDEX(Exerciții[],DataDeSfârșitUltimeleExerciții-ÎnceputRândExerciții-H30,1)),"") -> 2017-05-22 | E30: LUN | F30: =IFERROR((IF(INDEX(Exerciții[],DataDeSfârșitUltimeleExerciții-ÎnceputRândExerciții-H30,1)<>"",INDEX(Exerciții[],DataDeSfârșitUltimeleExerciții-ÎnceputRândExerciții-H30,2),0)),0) -> 45 | G30: =IFERROR((IF(INDEX(Exerciții[],DataDeSfârșitUltimeleExerciții-ÎnceputRândExerciții-H30,2)<>"",INDEX(Exerciții[],DataDeSfârșitUltimeleExerciții-ÎnceputRândExerciții-H30,3),0)),0) -> 325 | H30: 6
D31: =IFERROR(IF(INDEX(Exerciții[],DataDeSfârșitUltimeleExerciții-ÎnceputRândExerciții-H31,1)<>"",INDEX(Exerciții[],DataDeSfârșitUltimeleExerciții-ÎnceputRândExerciții-H31,1)),"") -> 2017-05-21 | E31: DUM | F31: =IFERROR((IF(INDEX(Exerciții[],DataDeSfârșitUltimeleExerciții-ÎnceputRândExerciții-H31,1)<>"",INDEX(Exerciții[],DataDeSfârșitUltimeleExerciții-ÎnceputRândExerciții-H31,2),0)),0) -> 40 | G31: =IFERROR((IF(INDEX(Exerciții[],DataDeSfârșitUltimeleExerciții-ÎnceputRândExerciții-H31,2)<>"",INDEX(Exerciții[],DataDeSfârșitUltimeleExerciții-ÎnceputRândExerciții-H31,3),0)),0) -> 175 | H31: 7
D32: =IFERROR(IF(INDEX(Exerciții[],DataDeSfârșitUltimeleExerciții-ÎnceputRândExerciții-H32,1)<>"",INDEX(Exerciții[],DataDeSfârșitUltimeleExerciții-ÎnceputRândExerciții-H32,1)),"") -> 2017-05-20 | E32: SÂM | F32: =IFERROR((IF(INDEX(Exerciții[],DataDeSfârșitUltimeleExerciții-ÎnceputRândExerciții-H32,1)<>"",INDEX(Exerciții[],DataDeSfârșitUltimeleExerciții-ÎnceputRândExerciții-H32,2),0)),0) -> 30 | G32: =IFERROR((IF(INDEX(Exerciții[],DataDeSfârșitUltimeleExerciții-ÎnceputRândExerciții-H32,2)<>"",INDEX(Exerciții[],DataDeSfârșitUltimeleExerciții-ÎnceputRândExerciții-H32,3),0)),0) -> 335 | H32: 8
D33: =IFERROR(IF(INDEX(Exerciții[],DataDeSfârșitUltimeleExerciții-ÎnceputRândExerciții-H33,1)<>"",INDEX(Exerciții[],DataDeSfârșitUltimeleExerciții-ÎnceputRândExerciții-H33,1)),"") -> 2017-05-19 | E33: VIN | F33: =IFERROR((IF(INDEX(Exerciții[],DataDeSfârșitUltimeleExerciții-ÎnceputRândExerciții-H33,1)<>"",INDEX(Exerciții[],DataDeSfârșitUltimeleExerciții-ÎnceputRândExerciții-H33,2),0)),0) -> 40 | G33: =IFERROR((IF(INDEX(Exerciții[],DataDeSfârșitUltimeleExerciții-ÎnceputRândExerciții-H33,2)<>"",INDEX(Exerciții[],DataDeSfârșitUltimeleExerciții-ÎnceputRândExerciții-H33,3),0)),0) -> 205 | H33: 9
D34: =IFERROR(IF(INDEX(Exerciții[],DataDeSfârșitUltimeleExerciții-ÎnceputRândExerciții-H34,1)<>"",INDEX(Exerciții[],DataDeSfârșitUltimeleExerciții-ÎnceputRândExerciții-H34,1)),"") -> 2017-05-18 | E34: JOI | F34: =IFERROR((IF(INDEX(Exerciții[],DataDeSfârșitUltimeleExerciții-ÎnceputRândExerciții-H34,1)<>"",INDEX(Exerciții[],DataDeSfârșitUltimeleExerciții-ÎnceputRândExerciții-H34,2),0)),0) -> 20 | G34: =IFERROR((IF(INDEX(Exerciții[],DataDeSfârșitUltimeleExerciții-ÎnceputRândExerciții-H34,2)<>"",INDEX(Exerciții[],DataDeSfârșitUltimeleExerciții-ÎnceputRândExerciții-H34,3),0)),0) -> 285 | H34: 10
D35: =IFERROR(IF(INDEX(Exerciții[],DataDeSfârșitUltimeleExerciții-ÎnceputRândExerciții-H35,1)<>"",INDEX(Exerciții[],DataDeSfârșitUltimeleExerciții-ÎnceputRândExerciții-H35,1)),"") -> 2017-05-17 | E35: MIE | F35: =IFERROR((IF(INDEX(Exerciții[],DataDeSfârșitUltimeleExerciții-ÎnceputRândExerciții-H35,1)<>"",INDEX(Exerciții[],DataDeSfârșitUltimeleExerciții-ÎnceputRândExerciții-H35,2),0)),0) -> 25 | G35: =IFERROR((IF(INDEX(Exerciții[],DataDeSfârșitUltimeleExerciții-ÎnceputRândExerciții-H35,2)<>"",INDEX(Exerciții[],DataDeSfârșitUltimeleExerciții-ÎnceputRândExerciții-H35,3),0)),0) -> 125 | H35: 11
D36: =IFERROR(IF(INDEX(Exerciții[],DataDeSfârșitUltimeleExerciții-ÎnceputRândExerciții-H36,1)<>"",INDEX(Exerciții[],DataDeSfârșitUltimeleExerciții-ÎnceputRândExerciții-H36,1)),"") -> 2017-05-16 | E36: MAR | F36: =IFERROR((IF(INDEX(Exerciții[],DataDeSfârșitUltimeleExerciții-ÎnceputRândExerciții-H36,1)<>"",INDEX(Exerciții[],DataDeSfârșitUltimeleExerciții-ÎnceputRândExerciții-H36,2),0)),0) -> 30 | G36: =IFERROR((IF(INDEX(Exerciții[],DataDeSfârșitUltimeleExerciții-ÎnceputRândExerciții-H36,2)<>"",INDEX(Exerciții[],DataDeSfârșitUltimeleExerciții-ÎnceputRândExerciții-H36,3),0)),0) -> 150 | H36: 12
